fUST/lending_fUST_20250927
["ID","MTS","AMOUNT","RATE_DAILY","PERIOD"]
[388017923,1758966638866,-1000.0,0.00032321,5]
[388017924,1758966638876,-1000.0,0.00032321,5]
[388017925,1758966638886,-676.24628901,0.00032321,5]
[388017926,1758966638895,-1000.0,0.00032321,5]
[388017927,1758966638905,-1000.0,0.00032321,5]
[388017928,1758966638915,-1000.0,0.00032321,5]
[388017929,1758966638925,-1000.0,0.00032321,5]
[388017930,1758966638934,-1000.0,0.00032321,5]
[388017931,1758966638944,-720.51380388,0.00032321,5]
[388017932,1758966638954,-169.479402,0.00032331,2]
[388017933,1758966638963,-160.75222758,0.000326,120]
[388017934,1758966638973,-160.42027368,0.000326,120]
[388017935,1758966638983,-1500.0,0.00032644,5]
[388017936,1758966638992,-3123.32883054,0.00032769,2]
[388017937,1758966639001,-479.96696907,0.00032823,2]
[388017938,1758966639011,-1000.01873555,0.00032868,2]
[388017939,1758966639020,-1000.0,0.00032868,5]
[388017940,1758966639029,-1500.0,0.00032868,5]
[388017941,1758966639038,-531.69247496,0.00032868,5]
[388017942,1758966639048,-1500.0,0.00032868,5]
[388017943,1758966639058,-1500.0,0.00032868,5]
[388017944,1758966639067,-1500.0,0.00032868,5]
[388017945,1758966639076,-1500.0,0.00032868,5]
[388017946,1758966639086,-150.0,0.00032876,2]
[388017947,1758966639095,-300.0,0.00032876,2]
[388017948,1758966639106,-450.0,0.00032876,2]
[388017949,1758966639116,-600.0,0.00032876,2]
[388017950,1758966639125,-159.26782013,0.00032876,2]
[388017951,1758966639135,-804.8488,0.00032877,2]
[388017952,1758966639144,-153.05260372,0.00032883,10]
[388017953,1758966639154,-465.89468584,0.00032891,2]
[388017954,1758966639164,-160.42027368,0.00033,120]
[388017955,1758966639173,-1063.98,0.0003312,3]
[388017956,1758966639182,-531.98,0.0003312,3]
[388017957,1758966639192,-250.0,0.00033304,2]
[388017958,1758966639202,-560.0,0.00033354,2]
[388017959,1758966639211,-153.0,0.00033397,2]
[388017960,1758966639221,-153.0,0.00033397,2]
[388017961,1758966639230,-500.0,0.00033416,5]
[388017962,1758966639240,-500.0,0.00033416,5]
[388017963,1758966639250,-594.94837154,0.00033416,5]
[388017964,1758966639259,-500.0,0.00033416,5]
[388017965,1758966639268,-523.22656174,0.00033416,5]
[388017966,1758966639278,-1713.11,0.000336,14]
[388017967,1758966639288,-15299.93092143,0.00033857,2]
[388017968,1758966639298,-3123.32883054,0.00033867,2]
[388017969,1758966639308,-160.0,0.00033868,2]
[388017970,1758966639317,-160.0,0.00033875,2]
[388017971,1758966639327,-233.76631357,0.00033875,2]
[388017972,1758966639336,-160.0,0.00033875,2]
[388017973,1758966639345,-160.0,0.00033875,2]
[388017974,1758966639355,-853.27461168,0.00034059,2]
[388017975,1758966639364,-828.25721927,0.00034151,2]
[388017976,1758966639374,-1000.0,0.00034361,2]
[388017977,1758966639383,-200.54931973,0.00034361,2]
[388017978,1758966639393,-979.0,0.00034693,2]
[388017979,1758966639406,-635.0,0.00034693,2]
[388017980,1758966639416,-2161.0,0.00034693,2]
[388017981,1758966639426,-150.0,0.00034693,2]
[388017982,1758966639435,-3123.32883054,0.00034966,2]
[388017983,1758966639444,-176.98420056,0.00035516,2]
[388017984,1758966639454,-480.0,0.00035616,9]
[388017985,1758966639463,-480.0,0.00035616,9]
[388017986,1758966639473,-797.58,0.00035616,9]
[388017987,1758966639482,-480.0,0.00035616,9]
[388017988,1758966639492,-480.0,0.00035616,9]
[388017989,1758966639502,-153.04720755,0.00035616,9]
[388017990,1758966639512,-480.0,0.00035616,9]
[388017991,1758966639522,-529.58043624,0.00035616,9]
[388017992,1758966639532,-480.0,0.00035616,9]
[388017993,1758966639543,-480.42546089,0.00035616,9]
[388017994,1758966639553,-480.0,0.00035616,9]
[388017995,1758966639563,-480.0,0.00035616,9]
[388017996,1758966639572,-480.0,0.00035616,9]
[388017997,1758966639582,-480.0,0.00035616,9]
[388017998,1758966639592,-482.38,0.00035616,9]
[388017999,1758966639603,-376.02998468,0.00035616,9]
[388018000,1758966639613,-480.0,0.00035616,9]
[388018001,1758966639622,-480.0,0.00035616,9]
[388018002,1758966639632,-480.0,0.00035616,9]
[388018003,1758966639642,-421.84622695,0.00035616,9]
[388018004,1758966639652,-480.0,0.00035616,9]
[388018005,1758966639661,-480.0,0.00035616,9]
[388018006,1758966639670,-480.0,0.00035616,9]
[388018007,1758966639679,-480.0,0.00035616,9]
[388018008,1758966639689,-480.0,0.00035616,9]
[388018009,1758966639699,-480.0,0.00035616,9]
[388018010,1758966639708,-480.0,0.00035616,9]
[388018011,1758966639718,-481.72443208,0.00035616,9]
[388018012,1758966639727,-480.0,0.00035616,9]
[388018013,1758966639736,-480.0,0.00035616,9]
[388018014,1758966639745,-480.0,0.00035616,9]
[388018015,1758966639755,-480.0,0.00035616,9]
[388018016,1758966639764,-705.78,0.00035616,9]
[388018017,1758966639773,-480.0,0.00035616,9]
[388018018,1758966639783,-480.0,0.00035616,9]
[388018020,1758966639793,-480.0,0.00035616,9]
[388018022,1758966639802,-480.0,0.00035616,9]
[388018024,1758966639811,-193.29602412,0.00035616,9]
[388018026,1758966639822,-624.69,0.00035616,9]
[388018028,1758966639832,-480.0,0.00035616,9]
[388018030,1758966639841,-480.0,0.00035616,9]
[388018032,1758966639851,-480.0,0.00035616,9]
[388018034,1758966639862,-480.0,0.00035616,9]
[388018036,1758966639871,-480.0,0.00035616,9]
[388018038,1758966639881,-480.0,0.00035616,9]
[388018040,1758966639890,-480.0,0.00035616,9]
[388018042,1758966639900,-480.0,0.00035616,9]
[388018044,1758966639910,-480.0,0.00035616,9]
[388018046,1758966639919,-492.0847084,0.00035616,9]
[388018048,1758966639929,-480.0,0.00035616,9]
[388018050,1758966639938,-480.0,0.00035616,9]
[388018051,1758966639948,-480.0,0.00035616,9]
[388018052,1758966639957,-480.0,0.00035616,9]
[388018053,1758966639966,-657.13,0.00035616,9]
[388018054,1758966639976,-480.0,0.00035616,9]
[388018055,1758966639985,-480.0,0.00035616,9]
[388018057,1758966639995,-480.0,0.00035616,9]
[388018059,1758966640004,-480.0,0.00035616,9]
[388018061,1758966640014,-480.0,0.00035616,9]
[388018063,1758966640023,-480.0,0.00035616,9]
[388018065,1758966640032,-480.0,0.00035616,9]
[388018067,1758966640042,-480.0,0.00035616,9]
[388018069,1758966640051,-2279.39273473,0.00035616,120]
[388018071,1758966640060,-480.0,0.00035616,9]
[388018073,1758966640070,-763.89,0.00035616,9]
[388018075,1758966640079,-2206.93,0.00035616,9]
[388018077,1758966640089,-381.58222703,0.00035616,9]
[388018079,1758966640098,-480.0,0.00035616,9]
[388018080,1758966640108,-480.0,0.00035616,9]
[388018082,1758966640117,-500.0,0.00035616,9]
[388018084,1758966640126,-500.0,0.00035616,9]
[388018086,1758966640135,-500.0,0.00035616,9]
[388018088,1758966640144,-500.0,0.00035616,9]
[388018090,1758966640153,-500.0,0.00035616,9]
[388018092,1758966640162,-500.0,0.00035616,9]
[388018094,1758966640171,-500.0,0.00035616,9]
[388018096,1758966640181,-480.0,0.00035616,9]
[388018098,1758966640190,-480.0,0.00035616,9]
[388018100,1758966640199,-500.0,0.00035616,9]
[388018102,1758966640208,-500.0,0.00035616,9]
[388018104,1758966640218,-500.0,0.00035616,9]
[388018106,1758966640227,-500.0,0.00035616,9]
[388018108,1758966640236,-500.0,0.00035616,9]
[388018110,1758966640245,-500.0,0.00035616,9]
[388018112,1758966640256,-500.0,0.00035616,9]
[388018114,1758966640265,-480.66997004,0.00035616,9]
[388018116,1758966640275,-480.0,0.00035616,9]
[388018118,1758966640284,-500.0,0.00035616,9]
[388018120,1758966640293,-220.84700355,0.00035616,9]
[388018122,1758966640303,-480.0,0.00035616,9]
[388018124,1758966640316,-480.0,0.00035616,9]
[388018126,1758966640342,-480.0,0.00035616,9]
[388018128,1758966640351,-480.0,0.00035616,9]
[388018129,1758966640361,-480.0,0.00035616,9]
[388018131,1758966640373,-480.0,0.00035616,9]
[388018133,1758966640383,-480.0,0.00035616,9]
[388018135,1758966640392,-480.0,0.00035616,9]
[388018137,1758966640405,-480.0,0.00035616,9]
[388018159,1758966640607,-480.0,0.00035616,9]
[388018161,1758966640627,-480.0,0.00035616,9]
[388018163,1758966640636,-480.0,0.00035616,9]
[388018165,1758966640646,-480.0,0.00035616,9]
[388018167,1758966640655,-381.1955831,0.00035616,9]
[388018169,1758966640664,-498.15,0.00035616,9]
[388018171,1758966640674,-480.0,0.00035616,9]
[388018173,1758966640684,-480.0,0.00035616,9]
[388018175,1758966640694,-480.0,0.00035616,9]
[388018177,1758966640703,-1579.73,0.00035616,9]
[388018179,1758966640713,-480.0,0.00035616,9]
[388018180,1758966640722,-480.0,0.00035616,9]
[388018181,1758966640731,-480.0,0.00035616,9]
[388018182,1758966640740,-500.0,0.00035616,9]
[388018183,1758966640749,-500.0,0.00035616,9]
[388018185,1758966640758,-480.0,0.00035616,9]
[388018187,1758966640767,-500.0,0.00035616,9]
[388018189,1758966640776,-500.0,0.00035616,9]
[388018191,1758966640786,-500.0,0.00035616,9]
[388018192,1758966640795,-500.0,0.00035616,9]
[388018194,1758966640804,-447.49140305,0.00035616,9]
[388018195,1758966640813,-480.0,0.00035616,9]
[388018196,1758966640823,-482.03993174,0.00035616,9]
[388018197,1758966640832,-480.0,0.00035616,9]
[388018199,1758966640841,-901.29,0.00035616,9]
[388018201,1758966640850,-1617.79,0.00035616,9]
[388018203,1758966640860,-480.0,0.00035616,9]
[388018205,1758966640869,-480.0,0.00035616,9]
[388018207,1758966640878,-480.0,0.00035616,9]
[388018209,1758966640887,-480.0,0.00035616,9]
[388018211,1758966640896,-480.0,0.00035616,9]
[388018212,1758966640906,-847.6,0.00035616,9]
[388018213,1758966640915,-1102.85,0.00035616,9]
[388018215,1758966640924,-480.0,0.00035616,9]
[388018216,1758966640933,-480.0,0.00035616,9]
[388018217,1758966640942,-582.39,0.00035616,9]
[388018218,1758966640951,-480.0,0.00035616,9]
[388018219,1758966640960,-480.0,0.00035616,9]
[388018220,1758966640970,-480.0,0.00035616,9]
[388018221,1758966640979,-520.0,0.00035616,3]
[388018222,1758966640988,-480.0,0.00035616,9]
[388018223,1758966640998,-480.0,0.00035616,9]
[388018224,1758966641008,-480.0,0.00035616,9]
[388018225,1758966641018,-480.0,0.00035616,9]
[388018226,1758966641028,-480.0,0.00035616,2]
[388018227,1758966641038,-484.20550468,0.00035616,9]
[388018228,1758966641047,-480.0,0.00035616,9]
[388018229,1758966641056,-333.37686379,0.00035616,9]
[388018230,1758966641065,-480.0,0.00035616,9]
[388018231,1758966641074,-546.62,0.00035616,9]
[388018232,1758966641084,-480.0,0.00035616,9]
[388018233,1758966641094,-500.0,0.00035616,9]
[388018234,1758966641104,-480.0,0.00035616,9]
[388018235,1758966641113,-480.0,0.00035616,9]
[388018236,1758966641123,-480.0,0.00035616,9]
[388018237,1758966641133,-480.0,0.00035616,9]
[388018238,1758966641143,-480.0,0.00035616,9]
[388018239,1758966641152,-480.0,0.00035616,9]
[388018240,1758966641161,-480.0,0.00035616,9]
[388018241,1758966641170,-480.0,0.00035616,9]
[388018242,1758966641180,-480.0,0.00035616,9]
[388018243,1758966641189,-480.0,0.00035616,9]
[388018244,1758966641199,-480.0,0.00035616,9]
[388018245,1758966641208,-480.0,0.00035616,9]
[388018246,1758966641217,-480.0,0.00035616,9]
[388018247,1758966641227,-480.0,0.00035616,9]
[388018248,1758966641236,-480.0,0.00035616,9]
[388018249,1758966641246,-480.0,0.00035616,9]
[388018250,1758966641256,-480.0,0.00035616,9]
[388018251,1758966641265,-480.0,0.00035616,9]
[388018252,1758966641275,-480.0,0.00035616,9]
[388018253,1758966641284,-480.0,0.00035616,9]
[388018254,1758966641293,-480.0,0.00035616,9]
[388018255,1758966641303,-480.0,0.00035616,9]
[388018256,1758966641312,-484.88816105,0.00035616,9]
[388018257,1758966641322,-480.0,0.00035616,9]
[388018258,1758966641331,-480.0,0.00035616,9]
[388018259,1758966641340,-480.0,0.00035616,9]
[388018260,1758966641350,-480.0,0.00035616,9]
[388018261,1758966641359,-811.63,0.00035616,9]
[388018262,1758966641369,-480.0,0.00035616,9]
[388018263,1758966641379,-777.81,0.00035616,9]
[388018264,1758966641388,-480.0,0.00035616,9]
[388018265,1758966641400,-542.79824397,0.00035616,9]
[388018266,1758966641409,-512.36,0.00035616,9]
[388018267,1758966641419,-480.0,0.00035616,9]
[388018268,1758966641429,-451.0793446,0.00035616,9]
[388018269,1758966641438,-522.43,0.00035616,9]
[388018270,1758966641448,-480.0,0.00035616,9]
[388018271,1758966641458,-480.0,0.00035616,9]
[388018272,1758966641469,-480.0,0.00035616,9]
[388018273,1758966641479,-480.0,0.00035616,9]
[388018274,1758966641488,-480.0,0.00035616,9]
[388018275,1758966641498,-480.0,0.00035616,9]
[388018276,1758966641507,-480.0,0.00035616,9]
[388018277,1758966641517,-480.0,0.00035616,9]
[388018278,1758966641526,-480.0,0.00035616,9]
[388018279,1758966641535,-1000.0,0.00035616,9]
[388018280,1758966641545,-480.0,0.00035616,9]
[388018281,1758966641555,-480.0,0.00035616,9]
[388018282,1758966641564,-480.0,0.00035616,9]
[388018283,1758966641574,-480.0,0.00035616,9]
[388018284,1758966641584,-584.64556439,0.00035616,9]
[388018285,1758966641594,-480.0,0.00035616,9]
[388018286,1758966641603,-480.0,0.00035616,9]
[388018287,1758966641612,-480.0,0.00035616,9]
[388018288,1758966641621,-480.0,0.00035616,9]
[388018289,1758966641631,-480.0,0.00035616,9]
[388018290,1758966641640,-480.0,0.00035616,9]
[388018291,1758966641651,-480.0,0.00035616,9]
[388018292,1758966641661,-480.0,0.00035616,9]
[388018293,1758966641670,-480.0,0.00035616,9]
[388018294,1758966641679,-480.0,0.00035616,9]
[388018295,1758966641689,-480.0,0.00035616,9]
[388018296,1758966641698,-480.0,0.00035616,9]
[388018297,1758966641707,-480.0,0.00035616,9]
[388018298,1758966641716,-480.0,0.00035616,9]
[388018299,1758966641725,-520.25,0.00035616,9]
[388018300,1758966641735,-480.0,0.00035616,9]
[388018301,1758966641744,-480.0,0.00035616,9]
[388018302,1758966641754,-1007.24,0.00035616,9]
[388018303,1758966641763,-352.75253673,0.00035616,9]
[388018304,1758966641773,-480.0,0.00035616,9]
[388018305,1758966641783,-480.0,0.00035616,9]
[388018306,1758966641793,-480.0,0.00035616,9]
[388018307,1758966641803,-1095.95,0.00035616,9]
[388018308,1758966641812,-1143.57,0.00035616,9]
[388018309,1758966641822,-740.34,0.00035616,9]
[388018310,1758966641831,-480.0,0.00035616,9]
[388018311,1758966641841,-480.0,0.00035616,9]
[388018312,1758966641851,-541.41,0.00035616,9]
[388018313,1758966641860,-480.0,0.00035616,9]
[388018314,1758966641869,-480.0,0.00035616,9]
[388018315,1758966641879,-748.9,0.00035616,9]
[388018316,1758966641888,-480.0,0.00035616,9]
[388018317,1758966641898,-480.0,0.00035616,9]
[388018318,1758966641908,-480.0,0.00035616,9]
[388018319,1758966641922,-480.0,0.00035616,9]
[388018320,1758966641931,-480.0,0.00035616,9]
[388018321,1758966641942,-480.0,0.00035616,9]
[388018322,1758966641952,-480.0,0.00035616,9]
[388018323,1758966641962,-480.0,0.00035616,9]
[388018324,1758966641971,-480.0,0.00035616,9]
[388018325,1758966641981,-480.0,0.00035616,9]
[388018326,1758966641991,-481.73964426,0.00035616,9]
[388018327,1758966642001,-480.0,0.00035616,9]
[388018328,1758966642011,-480.0,0.00035616,9]
[388018329,1758966642021,-582.22,0.00035616,9]
[388018330,1758966642031,-480.0,0.00035616,9]
[388018331,1758966642040,-2451.88,0.00035616,9]
[388018332,1758966642049,-480.0,0.00035616,9]
[388018333,1758966642059,-480.0,0.00035616,9]
[388018334,1758966642068,-1145.06,0.00035616,9]
[388018335,1758966642078,-480.0,0.00035616,9]
[388018336,1758966642087,-480.0,0.00035616,9]
[388018337,1758966642098,-532.55816708,0.00035616,9]
[388018338,1758966642108,-480.0,0.00035616,9]
[388018339,1758966642117,-480.0,0.00035616,9]
[388018340,1758966642127,-480.0,0.00035616,9]
[388018341,1758966642136,-480.0,0.00035616,9]
[388018342,1758966642145,-571.22,0.00035616,9]
[388018343,1758966642155,-480.0,0.00035616,9]
[388018344,1758966642164,-411.20762256,0.00035616,9]
[388018345,1758966642174,-481.13380587,0.00035616,9]
[388018346,1758966642183,-480.0,0.00035616,9]
[388018347,1758966642193,-480.0,0.00035616,9]
[388018348,1758966642203,-480.0,0.00035616,9]
[388018349,1758966642212,-480.0,0.00035616,9]
[388018350,1758966642222,-480.0,0.00035616,9]
[388018351,1758966642231,-480.0,0.00035616,9]
[388018352,1758966642241,-480.0,0.00035616,9]
[388018353,1758966642250,-797.02,0.00035616,9]
[388018354,1758966642262,-499.29,0.00035616,9]
[388018355,1758966642276,-480.0,0.00035616,9]
[388018356,1758966642286,-480.0,0.00035616,9]
[388018357,1758966642296,-657.87,0.00035616,9]
[388018358,1758966642306,-2994.11,0.00035616,9]
[388018359,1758966642315,-1417.85,0.00035616,9]
[388018360,1758966642324,-480.75000186,0.00035616,9]
[388018361,1758966642333,-480.0,0.00035616,9]
[388018362,1758966642343,-729.54,0.00035616,9]
[388018363,1758966642352,-992.5,0.00035616,9]
[388018364,1758966642362,-480.0,0.00035616,9]
[388018365,1758966642371,-480.0,0.00035616,9]
[388018366,1758966642380,-494.65,0.00035616,9]
[388018367,1758966642389,-761.03,0.00035616,9]
[388018368,1758966642403,-2199.35,0.00035616,9]
[388018369,1758966642412,-480.0,0.00035616,9]
[388018370,1758966642421,-480.0,0.00035616,9]
[388018371,1758966642431,-480.0,0.00035616,9]
[388018372,1758966642440,-480.0,0.00035616,9]
[388018373,1758966642450,-480.0,0.00035616,9]
[388018374,1758966642459,-864.5,0.00035616,9]
[388018375,1758966642468,-480.0,0.00035616,9]
[388018376,1758966642478,-480.0,0.00035616,9]
[388018377,1758966642487,-480.0,0.00035616,9]
[388018378,1758966642496,-480.0,0.00035616,9]
[388018379,1758966642505,-480.0,0.00035616,9]
[388018380,1758966642515,-480.0,0.00035616,9]
[388018381,1758966642525,-480.0,0.00035616,9]
[388018382,1758966642534,-726.98,0.00035616,9]
[388018383,1758966642543,-480.0,0.00035616,9]
[388018384,1758966642553,-1376.28,0.00035616,9]
[388018385,1758966642563,-480.34737234,0.00035616,9]
[388018386,1758966642572,-480.0,0.00035616,9]
[388018387,1758966642582,-480.0,0.00035616,9]
[388018388,1758966642592,-480.0,0.00035616,9]
[388018389,1758966642601,-439.0492345,0.00035616,9]
[388018390,1758966642611,-480.0,0.00035616,9]
[388018391,1758966642620,-480.0,0.00035616,9]
[388018392,1758966642630,-480.0,0.00035616,9]
[388018393,1758966642640,-480.0,0.00035616,9]
[388018394,1758966642650,-480.0,0.00035616,9]
[388018395,1758966642659,-1033.85,0.00035616,9]
[388018396,1758966642669,-480.0,0.00035616,9]
[388018397,1758966642679,-480.0,0.00035616,9]
[388018398,1758966642688,-480.0,0.00035616,9]
[388018399,1758966642698,-1113.49,0.00035616,9]
[388018400,1758966642708,-461.23410469,0.00035616,9]
[388018401,1758966642717,-480.0,0.00035616,9]
[388018402,1758966642727,-1162.86,0.00035616,9]
[388018403,1758966642736,-480.0,0.00035616,9]
[388018404,1758966642745,-3133.19,0.00035616,9]
[388018406,1758966642755,-480.0,0.00035616,9]
[388018407,1758966642764,-480.0,0.00035616,9]
[388018408,1758966642773,-480.0,0.00035616,9]
[388018409,1758966642783,-480.0,0.00035616,9]
[388018410,1758966642792,-2390.15,0.00035616,9]
[388018411,1758966642801,-480.0,0.00035616,9]
[388018412,1758966642811,-1237.79,0.00035616,9]
[388018413,1758966642820,-484.47395881,0.00035616,9]
[388018414,1758966642830,-413.11303403,0.00035616,9]
[388018415,1758966642840,-1044.74,0.00035616,9]
[388018416,1758966642850,-480.0,0.00035616,9]
[388018417,1758966642859,-480.0,0.00035616,9]
[388018418,1758966642869,-729.87,0.00035616,9]
[388018419,1758966642879,-480.0,0.00035616,9]
[388018420,1758966642889,-480.0,0.00035616,9]
[388018421,1758966642899,-480.0,0.00035616,9]
[388018423,1758966642909,-512.9,0.00035616,9]
[388018424,1758966642918,-480.0,0.00035616,9]
[388018425,1758966642928,-589.01,0.00035616,9]
[388018426,1758966642938,-534.27,0.00035616,9]
[388018427,1758966642948,-480.0,0.00035616,9]
[388018428,1758966642957,-960.15,0.00035616,9]
[388018429,1758966642967,-480.0,0.00035616,9]
[388018430,1758966642977,-2202.81,0.00035616,9]
[388018431,1758966642987,-480.0,0.00035616,9]
[388018432,1758966642997,-1104.59,0.00035616,9]
[388018433,1758966643006,-1192.62,0.00035616,9]
[388018434,1758966643015,-462.61689005,0.00035616,9]
[388018435,1758966643025,-480.0,0.00035616,9]
[388018436,1758966643035,-480.0,0.00035616,9]
[388018437,1758966643043,-480.0,0.00035616,9]
[388018438,1758966643051,-480.0,0.00035616,9]
[388018439,1758966643059,-480.0,0.00035616,9]
[388018440,1758966643066,-480.0,0.00035616,9]
[388018441,1758966643075,-480.0,0.00035616,9]
[388018442,1758966643084,-505.04639712,0.00035616,9]
[388018443,1758966643094,-480.0,0.00035616,9]
[388018444,1758966643103,-480.0,0.00035616,9]
[388018445,1758966643113,-663.65,0.00035616,9]
[388018446,1758966643123,-1085.61,0.00035616,9]
[388018447,1758966643133,-629.86272348,0.00035616,9]
[388018448,1758966643143,-480.0,0.00035616,9]
[388018449,1758966643152,-483.57544604,0.00035616,7]
[388018450,1758966643162,-480.0,0.00035616,9]
[388018451,1758966643171,-480.0,0.00035616,9]
[388018452,1758966643180,-480.0,0.00035616,9]
[388018453,1758966643190,-1208.5,0.00035616,9]
[388018454,1758966643199,-518.94,0.00035616,9]
[388018455,1758966643208,-480.0,0.00035616,9]
[388018456,1758966643218,-3553.6,0.00035616,9]
[388018457,1758966643229,-480.0,0.00035616,9]
[388018458,1758966643240,-480.0,0.00035616,9]
[388018459,1758966643250,-480.0,0.00035616,9]
[388018460,1758966643259,-480.0,0.00035616,9]
[388018461,1758966643268,-480.0,0.00035616,9]
[388018462,1758966643278,-896.11,0.00035616,9]
[388018464,1758966643287,-252.24774113,0.00035616,9]
[388018465,1758966643297,-480.0,0.00035616,9]
[388018466,1758966643309,-3521.55,0.00035616,9]
[388018467,1758966643319,-480.0,0.00035616,9]
[388018469,1758966643328,-480.0,0.00035616,9]
[388018471,1758966643337,-1893.78,0.00035616,9]
[388018473,1758966643346,-480.0,0.00035616,9]
[388018475,1758966643355,-1245.6,0.00035616,9]
[388018477,1758966643365,-480.0,0.00035616,9]
[388018479,1758966643381,-248.44200045,0.00035616,9]
[388018480,1758966643391,-480.0,0.00035616,9]
[388018481,1758966643404,-480.0,0.00035616,9]
[388018482,1758966643413,-525.52671538,0.00035616,9]
[388018483,1758966643422,-480.0,0.00035616,9]
[388018484,1758966643431,-480.0,0.00035616,9]
[388018485,1758966643441,-480.0,0.00035616,9]
[388018486,1758966643450,-480.0,0.00035616,9]
[388018487,1758966643460,-934.98,0.00035616,9]
[388018488,1758966643469,-480.0,0.00035616,9]
[388018489,1758966643478,-1407.89,0.00035616,9]
[388018490,1758966643488,-600.0,0.00035616,9]
[388018491,1758966643498,-695.67,0.00035616,9]
[388018492,1758966643508,-480.0,0.00035616,9]
[388018493,1758966643517,-809.65,0.00035616,9]
[388018494,1758966643527,-480.0,0.00035616,7]
[388018495,1758966643537,-480.0,0.00035616,9]
[388018496,1758966643546,-480.0,0.00035616,9]
[388018497,1758966643555,-1059.74,0.00035616,9]
[388018498,1758966643564,-5378.31,0.00035616,9]
[388018499,1758966643574,-480.0,0.00035616,9]
[388018500,1758966643584,-480.0,0.00035616,9]
[388018501,1758966643593,-1567.83,0.00035616,9]
[388018502,1758966643603,-480.0,0.00035616,9]
[388018503,1758966643613,-480.0,0.00035616,9]
[388018504,1758966643623,-480.0,0.00035616,9]
[388018505,1758966643632,-480.0,0.00035616,9]
[388018506,1758966643642,-480.0,0.00035616,9]
[388018507,1758966643652,-480.0,0.00035616,9]
[388018508,1758966643661,-710.01,0.00035616,9]
[388018509,1758966643671,-710.01,0.00035616,9]
[388018510,1758966643680,-480.0,0.00035616,9]
[388018511,1758966643689,-480.0,0.00035616,9]
[388018512,1758966643698,-480.0,0.00035616,9]
[388018513,1758966643708,-479.65049509,0.00035616,9]
[388018514,1758966643717,-500.0,0.00035616,9]
[388018515,1758966643726,-480.0,0.00035616,9]
[388018516,1758966643735,-480.0,0.00035616,9]
[388018517,1758966643744,-776.45,0.00035616,9]
[388018518,1758966643753,-480.0,0.00035616,9]
[388018519,1758966643762,-1797.55,0.00035616,9]
[388018520,1758966643772,-480.0,0.00035616,9]
[388018521,1758966643780,-480.0,0.00035616,9]
[388018522,1758966643789,-2320.13,0.00035616,9]
[388018523,1758966643799,-480.0,0.00035616,9]
[388018524,1758966643808,-480.0,0.00035616,9]
[388018525,1758966643818,-480.0,0.00035616,9]
[388018526,1758966643827,-625.70367343,0.00035616,9]
[388018527,1758966643836,-480.0,0.00035616,9]
[388018528,1758966643846,-480.0,0.00035616,9]
[388018529,1758966643856,-852.61,0.00035616,9]
[388018530,1758966643866,-480.0,0.00035616,9]
[388018531,1758966643876,-480.0,0.00035616,9]